Workbook

Sheet Financial Comparison Analysis
B3: Financial Comparison Analysis
B4: Your Company, Inc
D6: Industry Average | H6: Company Actual
D7: 2007 | E7: =D7+1 -> 2008 | F7: =E7+1 -> 2009 | H7: =D7 -> 2007 | I7: =H7+1 -> 2008 | J7: =I7+1 -> 2009
B8: ASSETS
B9: Cash | D9: $1,500 | E9: $1,560 | F9: $1,490 | H9: $2,230 | I9: $2,450 | J9: $2,670
B10: Accounts receivable | D10: $250 | E10: $300 | F10: $360 | H10: $370 | I10: $420 | J10: $440
B11: Inventory | D11: $500 | E11: $650 | F11: $740 | H11: $800 | I11: $875 | J11: $840
C12: Total Current Assets | D12: =IF(SUM(D9:D11),SUM(D9:D11),"") -> $2,250 | E12: =IF(SUM(E9:E11),SUM(E9:E11),"") -> $2,510 | F12: =IF(SUM(F9:F11),SUM(F9:F11),"") -> $2,590 | H12: =IF(SUM(H9:H11),SUM(H9:H11),"") -> $3,400 | I12: =IF(SUM(I9:I11),SUM(I9:I11),"") -> $3,745 | J12: =IF(SUM(J9:J11),SUM(J9:J11),"") -> $3,950
B13: Fixed assets (net) | D13: $1,250 | E13: $1,340 | F13: $1,290 | H13: $2,650 | I13: $2,790 | J13: $2,850
B14: TOTAL ASSETS | D14: =IF(OR(D13<>0,SUM(D12)),SUM(D12:D13),"") -> $3,500 | E14: =IF(OR(E13<>0,SUM(E12)),SUM(E12:E13),"") -> $3,850 | F14: =IF(OR(F13<>0,SUM(F12)),SUM(F12:F13),"") -> $3,880 | H14: =IF(OR(H13<>0,SUM(H12)),SUM(H12:H13),"") -> $6,050 | I14: =IF(OR(I13<>0,SUM(I12)),SUM(I12:I13),"") -> $6,535 | J14: =IF(OR(J13<>0,SUM(J12)),SUM(J12:J13),"") -> $6,800
B16: LIABILITIES & EQUITY
B17: Accts & notes payable | D17: $1,800 | E17: $1,870 | F17: $1,910 | H17: $3,370 | I17: $3,650 | J17: $3,975
B18: Accrued & other payables | D18: $350 | E18: $380 | F18: $385 | H18: $590 | I18: $635 | J18: $650
C19: Total Current Liabilities | D19: =IF(OR(D18<>0,D17),D17+D18,"") -> $2,150 | E19: =IF(OR(E18<>0,E17),E17+E18,"") -> $2,250 | F19: =IF(OR(F18<>0,F17),F17+F18,"") -> $2,295 | H19: =IF(OR(H18<>0,H17),H17+H18,"") -> $3,960 | I19: =IF(OR(I18<>0,I17),I17+I18,"") -> $4,285 | J19: =IF(OR(J18<>0,J17),J17+J18,"") -> $4,625
B20: Long-term debt | D20: $800 | E20: $940 | F20: $1,060 | H20: $1,650 | I20: $1,780 | J20: $1,825
C21: Total Debt | D21: =IF(SUM(D19,D20),D19+D20,"") -> $2,950 | E21: =IF(SUM(E19,E20),E19+E20,"") -> $3,190 | F21: =IF(SUM(F19,F20),F19+F20,"") -> $3,355 | H21: =IF(SUM(H19,H20),H19+H20,"") -> $5,610 | I21: =IF(SUM(I19,I20),I19+I20,"") -> $6,065 | J21: =IF(SUM(J19,J20),J19+J20,"") -> $6,450
B22: Shareholders' equity | D22: =IF(OR(SUM(D14)<>0,SUM(D21)),SUM(D14)-SUM(D21),"") -> $550 | E22: =IF(OR(SUM(E14)<>0,SUM(E21)),SUM(E14)-SUM(E21),"") -> $660 | F22: =IF(OR(SUM(F14)<>0,SUM(F21)),SUM(F14)-SUM(F21),"") -> $525 | H22: =IF(OR(SUM(H14)<>0,SUM(H21)),SUM(H14)-SUM(H21),"") -> $440 | I22: =IF(OR(SUM(I14)<>0,SUM(I21)),SUM(I14)-SUM(I21),"") -> $470 | J22: =IF(OR(SUM(J14)<>0,SUM(J21)),SUM(J14)-SUM(J21),"") -> $350
B23: TOTAL LIABILITIES & EQUITY | D23: =IF(SUM(D14,D21),SUM(D21:D22),"") -> $3,500 | E23: =IF(SUM(E14,E21),SUM(E21:E22),"") -> $3,850 | F23: =IF(SUM(F14,F21),SUM(F21:F22),"") -> $3,880 | H23: =IF(SUM(H14,H21),SUM(H21:H22),"") -> $6,050 | I23: =IF(SUM(I14,I21),SUM(I21:I22),"") -> $6,535 | J23: =IF(SUM(J14,J21),SUM(J21:J22),"") -> $6,800
B25: INCOME DATA
B26: Net sales | D26: $1,900 | E26: $2,250 | F26: $1,985 | H26: $3,540 | I26: $3,740 | J26: $3,850
B27: Cost of goods sold | D27: $1,095 | E27: $1,250 | F27: $1,125 | H27: $1,830 | I27: $1,910 | J27: $2,250
C28: Gross Profit | D28: =IF(OR(D26<>0,D27),D26-D27,"") -> $805 | E28: =IF(OR(E26<>0,E27),E26-E27,"") -> $1,000 | F28: =IF(OR(F26<>0,F27),F26-F27,"") -> $860 | H28: =IF(OR(H26<>0,H27),H26-H27,"") -> $1,710 | I28: =IF(OR(I26<>0,I27),I26-I27,"") -> $1,830 | J28: =IF(OR(J26<>0,J27),J26-J27,"") -> $1,600
B29: Operating expenses | D29: $250 | E29: $420 | F29: $365 | H29: $780 | I29: $830 | J29: $790
B30: Operating profit | D30: =IF(OR(SUM(D28)<>0,D29),D28-D29,"") -> $555 | E30: =IF(OR(SUM(E28)<>0,E29),E28-E29,"") -> $580 | F30: =IF(OR(SUM(F28)<>0,F29),F28-F29,"") -> $495 | H30: =IF(OR(SUM(H28)<>0,H29),H28-H29,"") -> $930 | I30: =IF(OR(SUM(I28)<>0,I29),I28-I29,"") -> $1,000 | J30: =IF(OR(SUM(J28)<>0,J29),J28-J29,"") -> $810
B31: All other expenses (net) | D31: $375 | E31: $410 | F31: $420 | H31: $640 | I31: $705 | J31: $750
B32: PROFIT BEFORE TAXES | D32: =IF(OR(SUM(D30)<>0,D31),D30-D31,"") -> $180 | E32: =IF(OR(SUM(E30)<>0,E31),E30-E31,"") -> $170 | F32: =IF(OR(SUM(F30)<>0,F31),F30-F31,"") -> $75 | H32: =IF(OR(SUM(H30)<>0,H31),H30-H31,"") -> $290 | I32: =IF(OR(SUM(I30)<>0,I31),I30-I31,"") -> $295 | J32: =IF(OR(SUM(J30)<>0,J31),J30-J31,"") -> $60
B34: FINANCIAL RATIOS
B35: Current | D35: =IF(SUM(D19),SUM(D12)/SUM(D19),"") -> 1.0 | E35: =IF(SUM(E19),SUM(E12)/SUM(E19),"") -> 1.1 | F35: =IF(SUM(F19),SUM(F12)/SUM(F19),"") -> 1.1 | H35: =IF(SUM(H19),SUM(H12)/SUM(H19),"") -> 0.9 | I35: =IF(SUM(I19),SUM(I12)/SUM(I19),"") -> 0.9 | J35: =IF(SUM(J19),SUM(J12)/SUM(J19),"") -> 0.9
B36: Total debt / total assets | D36: =IF(SUM(D14),SUM(D21)/SUM(D14),"") -> 0.8 | E36: =IF(SUM(E14),SUM(E21)/SUM(E14),"") -> 0.8 | F36: =IF(SUM(F14),SUM(F21)/SUM(F14),"") -> 0.9 | H36: =IF(SUM(H14),SUM(H21)/SUM(H14),"") -> 0.9 | I36: =IF(SUM(I14),SUM(I21)/SUM(I14),"") -> 0.9 | J36: =IF(SUM(J14),SUM(J21)/SUM(J14),"") -> 0.9
B37: Total debt / equity | D37: =IF(SUM(D22),SUM(D21)/(D22),"") -> 5.4 | E37: =IF(SUM(E22),SUM(E21)/(E22),"") -> 4.8 | F37: =IF(SUM(F22),SUM(F21)/(F22),"") -> 6.4 | H37: =IF(SUM(H22),SUM(H21)/(H22),"") -> 12.8 | I37: =IF(SUM(I22),SUM(I21)/(I22),"") -> 12.9 | J37: =IF(SUM(J22),SUM(J21)/(J22),"") -> 18.4
B38: Collection period days | D38: =IF(SUM(D26),SUM(D10)/(SUM(D26)/(340+25)),"") -> 48.0 | E38: =IF(SUM(E26),SUM(E10)/(SUM(E26)/(340+25)),"") -> 48.7 | F38: =IF(SUM(F26),SUM(F10)/(SUM(F26)/(340+25)),"") -> 66.2 | H38: =IF(SUM(H26),SUM(H10)/(SUM(H26)/(340+25)),"") -> 38.1 | I38: =IF(SUM(I26),SUM(I10)/(SUM(I26)/(340+25)),"") -> 41.0 | J38: =IF(SUM(J26),SUM(J10)/(SUM(J26)/(340+25)),"") -> 41.7
B39: Net sales / inventory | D39: =IF(SUM(D11),SUM(D26)/SUM(D11),"") -> 3.8 | E39: =IF(SUM(E11),SUM(E26)/SUM(E11),"") -> 3.5 | F39: =IF(SUM(F11),SUM(F26)/SUM(F11),"") -> 2.7 | H39: =IF(SUM(H11),SUM(H26)/SUM(H11),"") -> 4.4 | I39: =IF(SUM(I11),SUM(I26)/SUM(I11),"") -> 4.3 | J39: =IF(SUM(J11),SUM(J26)/SUM(J11),"") -> 4.6
B40: Total assets turnover | D40: =IF(SUM(D14),SUM(D26)/SUM(D14),"") -> 0.5 | E40: =IF(SUM(E14),SUM(E26)/SUM(E14),"") -> 0.6 | F40: =IF(SUM(F14),SUM(F26)/SUM(F14),"") -> 0.5 | H40: =IF(SUM(H14),SUM(H26)/SUM(H14),"") -> 0.6 | I40: =IF(SUM(I14),SUM(I26)/SUM(I14),"") -> 0.6 | J40: =IF(SUM(J14),SUM(J26)/SUM(J14),"") -> 0.6
B41: Gross profit margin | D41: =IF(SUM(D26),SUM(D28)/SUM(D26),"") -> 42% | E41: =IF(SUM(E26),SUM(E28)/SUM(E26),"") -> 44% | F41: =IF(SUM(F26),SUM(F28)/SUM(F26),"") -> 43% | H41: =IF(SUM(H26),SUM(H28)/SUM(H26),"") -> 48% | I41: =IF(SUM(I26),SUM(I28)/SUM(I26),"") -> 49% | J41: =IF(SUM(J26),SUM(J28)/SUM(J26),"") -> 42%
B42: Operating profit margin | D42: =IF(SUM(D26),SUM(D30)/SUM(D26),"") -> 29% | E42: =IF(SUM(E26),SUM(E30)/SUM(E26),"") -> 26% | F42: =IF(SUM(F26),SUM(F30)/SUM(F26),"") -> 25% | H42: =IF(SUM(H26),SUM(H30)/SUM(H26),"") -> 26% | I42: =IF(SUM(I26),SUM(I30)/SUM(I26),"") -> 27% | J42: =IF(SUM(J26),SUM(J30)/SUM(J26),"") -> 21%
B43: Return on equity | D43: =IF(SUM(D22),SUM(D32)/SUM(D22),"") -> 33% | E43: =IF(SUM(E22),SUM(E32)/SUM(E22),"") -> 26% | F43: =IF(SUM(F22),SUM(F32)/SUM(F22),"") -> 14% | H43: =IF(SUM(H22),SUM(H32)/SUM(H22),"") -> 66% | I43: =IF(SUM(I22),SUM(I32)/SUM(I22),"") -> 63% | J43: =IF(SUM(J22),SUM(J32)/SUM(J22),"") -> 17%
